[Event "Early-Titled-Tuesday-Blitz-May-14-2024"]
[Site "Chess.com"]
[Date "2024.05.14"]
[Round "6"]
[White "Saxar85"]
[Black "valik3504"]
[Result "1-0"]
[WhiteElo "2784"]
[BlackElo "2549"]
[TimeControl "180+1"]
[EndTime "9:09:22 PDT"]
[Termination "Saxar85 won by resignation"]

1. Nf3 {[%clk 0:02:55.6]} 1... c5 {[%clk 0:02:58.6]} 2. g3 {[%clk 0:02:49.8]}
2... g6 {[%clk 0:02:56.4]} 3. c3 {[%clk 0:02:42.2]} 3... Bg7 {[%clk 0:02:55.9]}
4. d4 {[%clk 0:02:41.9]} 4... Nf6 {[%clk 0:02:32.6]} 5. Bg2 {[%clk 0:02:41.2]}
5... O-O {[%clk 0:02:31.9]} 6. O-O {[%clk 0:02:40.7]} 6... d6 {[%clk 0:02:28.7]}
7. Re1 {[%clk 0:02:39.1]} 7... Nc6 {[%clk 0:02:20.5]} 8. d5 {[%clk 0:02:37.4]}
8... Na5 {[%clk 0:02:15.6]} 9. e4 {[%clk 0:02:35.9]} 9... Nd7 {[%clk 0:02:10.5]}
10. Bf4 {[%clk 0:02:31]} 10... Nc4 {[%clk 0:02:07]} 11. Qe2 {[%clk 0:02:25.8]}
11... Nce5 {[%clk 0:02:00.4]} 12. Nbd2 {[%clk 0:02:25.3]} 12... Rb8 {[%clk
0:01:58]} 13. a4 {[%clk 0:02:18.9]} 13... a6 {[%clk 0:01:56.9]} 14. a5 {[%clk
0:02:03.2]} 14... h6 {[%clk 0:01:46.4]} 15. h3 {[%clk 0:02:00.5]} 15... Kh7
{[%clk 0:01:43.8]} 16. Be3 {[%clk 0:01:55.1]} 16... Nxf3+ {[%clk 0:01:28]} 17.
Nxf3 {[%clk 0:01:52.9]} 17... b5 {[%clk 0:01:28.9]} 18. axb6 {[%clk 0:01:49.9]}
18... Qxb6 {[%clk 0:01:29]} 19. Bc1 {[%clk 0:01:34.9]} 19... a5 {[%clk
0:01:25.5]} 20. Qd1 {[%clk 0:01:17.3]} 20... Ba6 {[%clk 0:01:06.9]} 21. Qa4
{[%clk 0:01:16.7]} 21... Bb5 {[%clk 0:01:04.4]} 22. Qxa5 {[%clk 0:01:16.1]}
22... Qb7 {[%clk 0:01:04.5]} 23. Qa2 {[%clk 0:00:45.2]} 23... Ra8 {[%clk
0:01:04.2]} 24. Qb1 {[%clk 0:00:45.3]} 24... Bd3 {[%clk 0:01:04.2]} 25. Qxd3
{[%clk 0:00:42.5]} 25... Rxa1 {[%clk 0:01:04]} 26. Kh2 {[%clk 0:00:42.4]} 26...
Rfa8 {[%clk 0:00:51.8]} 27. h4 {[%clk 0:00:42]} 27... Qb3 {[%clk 0:00:34.5]} 28.
h5 {[%clk 0:00:39.7]} 28... c4 {[%clk 0:00:28.1]} 29. Qe2 {[%clk 0:00:38.6]}
29... Nc5 {[%clk 0:00:23.9]} 30. hxg6+ {[%clk 0:00:36.6]} 30... fxg6 {[%clk
0:00:23.9]} 31. Nh4 {[%clk 0:00:35.3]} 31... Nd3 {[%clk 0:00:20.3]} 32. Qg4
{[%clk 0:00:33.9]} 32... Ne5 {[%clk 0:00:18.2]} 33. Qe6 {[%clk 0:00:30.5]} 33...
Qc2 {[%clk 0:00:14.3]} 34. f4 {[%clk 0:00:28.9]} 34... Rxc1 {[%clk 0:00:11.4]}
35. Rxc1 {[%clk 0:00:28.5]} 35... Qxc1 {[%clk 0:00:11.1]} 36. fxe5 {[%clk
0:00:28.5]} 36... Qg5 {[%clk 0:00:10.3]} 37. exd6 {[%clk 0:00:21.6]} 37... exd6
{[%clk 0:00:11.2]} 38. Qxd6 {[%clk 0:00:19.8]} 38... Be5 {[%clk 0:00:06.7]} 39.
Qd7+ {[%clk 0:00:20]} 39... Kh8 {[%clk 0:00:06.5]} 40. Qh3 {[%clk 0:00:19.9]}
40... Ra2 {[%clk 0:00:04.6]} 41. Nf3 {[%clk 0:00:19.6]} 41... Qf6 {[%clk
0:00:03]} 42. Qc8+ {[%clk 0:00:18]} 42... Kh7 {[%clk 0:00:03.5]} 43. Qd7+ {[%clk
0:00:16.1]} 43... Kg8 {[%clk 0:00:02]} 44. Qe8+ {[%clk 0:00:15.3]} 44... Kh7
{[%clk 0:00:01.8]} 45. Qxe5 {[%clk 0:00:14.6]} 45... Qxe5 {[%clk 0:00:01.8]} 46.
Nxe5 {[%clk 0:00:14.8]} 46... Rxb2 {[%clk 0:00:02.6]} 47. Nxc4 {[%clk 0:00:15]}
47... Rc2 {[%clk 0:00:02.2]} 48. Ne5 {[%clk 0:00:14.9]} 48... Rxc3 {[%clk
0:00:02.5]} 49. d6 {[%clk 0:00:15.1]} 49... Rc2 {[%clk 0:00:01.7]} 50. d7 {[%clk
0:00:15]} 50... Rd2 {[%clk 0:00:02.2]} 51. Kg1 {[%clk 0:00:14.5]} 51... Kg7
{[%clk 0:00:01.8]} 52. Bh3 {[%clk 0:00:14.7]} 52... g5 {[%clk 0:00:01.8]} 53.
Nc6 {[%clk 0:00:14.6]} 53... g4 {[%clk 0:00:02.5]} 54. Bxg4 {[%clk 0:00:14.7]}
54... Kf6 {[%clk 0:00:03]} 55. d8=Q+ {[%clk 0:00:14.3]} 55... Rxd8 {[%clk
0:00:03.7]} 56. Nxd8 {[%clk 0:00:14.2]} 56... Ke5 {[%clk 0:00:04.6]} 57. Bf5
{[%clk 0:00:14.4]} 1-0

[Event "Early-Titled-Tuesday-Blitz-May-14-2024"]
[Site "Chess.com"]
[Date "2024.05.14"]
[Round "6"]
[White "ChainedDowntohell"]
[Black "JaloliddinIlkhomi"]
[Result "0-1"]
[WhiteElo "2588"]
[BlackElo "2752"]
[TimeControl "180+1"]
[EndTime "9:09:22 PDT"]
[Termination "JaloliddinIlkhomi won by resignation"]

1. d4 {[%clk 0:03:00.9]} 1... Nf6 {[%clk 0:03:00]} 2. c4 {[%clk 0:02:59.7]} 2...
e6 {[%clk 0:03:00.5]} 3. Nc3 {[%clk 0:02:58.6]} 3... Bb4 {[%clk 0:03:00.8]} 4.
Qc2 {[%clk 0:02:57.6]} 4... O-O {[%clk 0:03:01.4]} 5. a3 {[%clk 0:02:56]} 5...
Bxc3+ {[%clk 0:03:01.3]} 6. Qxc3 {[%clk 0:02:56.9]} 6... b6 {[%clk 0:03:01.3]}
7. Bg5 {[%clk 0:02:50.6]} 7... Bb7 {[%clk 0:02:51.8]} 8. Nf3 {[%clk 0:02:50.7]}
8... h6 {[%clk 0:02:43.8]} 9. Bh4 {[%clk 0:02:48]} 9... d6 {[%clk 0:02:25.6]}
10. Nd2 {[%clk 0:02:45.7]} 10... Nbd7 {[%clk 0:02:23.9]} 11. f3 {[%clk
0:02:39.8]} 11... c5 {[%clk 0:02:21.6]} 12. dxc5 {[%clk 0:02:31.8]} 12... bxc5
{[%clk 0:02:17.3]} 13. e3 {[%clk 0:02:28.2]} 13... Qb6 {[%clk 0:02:14.5]} 14.
Be2 {[%clk 0:02:22.2]} 14... Rab8 {[%clk 0:02:14.1]} 15. b4 {[%clk 0:02:15.7]}
15... a6 {[%clk 0:02:10.2]} 16. Kf2 {[%clk 0:02:12.2]} 16... Rfc8 {[%clk
0:02:07.1]} 17. Rab1 {[%clk 0:02:10.2]} 17... d5 {[%clk 0:02:04.5]} 18. Qa1
{[%clk 0:02:01.4]} 18... cxb4 {[%clk 0:01:54.8]} 19. Rxb4 {[%clk 0:02:00.5]}
19... Qa7 {[%clk 0:01:51.9]} 20. Rhb1 {[%clk 0:01:54.2]} 20... dxc4 {[%clk
0:01:49.9]} 21. Nxc4 {[%clk 0:01:22.3]} 21... Nd5 {[%clk 0:01:35.3]} 22. Rxb7
{[%clk 0:01:13.8]} 22... Rxb7 {[%clk 0:01:26.6]} 23. Rxb7 {[%clk 0:01:13.2]}
23... Qxb7 {[%clk 0:01:21.8]} 24. Nd6 {[%clk 0:01:13.2]} 24... Qc7 {[%clk
0:01:14.2]} 25. Nxc8 {[%clk 0:01:10.9]} 25... Qxc8 {[%clk 0:01:15.1]} 26. Qd4
{[%clk 0:01:07.8]} 26... a5 {[%clk 0:01:13.4]} 27. e4 {[%clk 0:01:05.4]} 27...
Nf4 {[%clk 0:01:11.4]} 28. Bg3 {[%clk 0:00:57]} 28... Nxe2 {[%clk 0:01:06.9]}
29. Kxe2 {[%clk 0:00:56.6]} 29... e5 {[%clk 0:01:06.2]} 30. Bxe5 {[%clk
0:00:40.8]} 30... Qc2+ {[%clk 0:01:06]} 31. Kf1 {[%clk 0:00:37.1]} 31... Nc5
{[%clk 0:00:38.3]} 32. h3 {[%clk 0:00:06.3]} 32... Nd3 {[%clk 0:00:37.6]} 33.
Kg1 {[%clk 0:00:04.9]} 33... f6 {[%clk 0:00:29.1]} 34. Bd6 {[%clk 0:00:04.8]}
34... Ne1 {[%clk 0:00:18.8]} 35. Qf2 {[%clk 0:00:05]} 35... Qd1 {[%clk
0:00:19.1]} 36. Kh2 {[%clk 0:00:03.6]} 36... Qxd6+ {[%clk 0:00:18.5]} 37. g3
{[%clk 0:00:03.8]} 37... Nd3 {[%clk 0:00:17.7]} 38. Qd2 {[%clk 0:00:02.3]} 38...
Qd4 {[%clk 0:00:17.8]} 39. h4 {[%clk 0:00:02]} 39... Qf2+ {[%clk 0:00:16.2]} 40.
Qxf2 {[%clk 0:00:01.2]} 40... Nxf2 {[%clk 0:00:17.1]} 41. Kg2 {[%clk 0:00:01.6]}
41... Nd3 {[%clk 0:00:17.8]} 42. Kf1 {[%clk 0:00:02.5]} 42... Nb2 {[%clk
0:00:17.8]} 43. Ke2 {[%clk 0:00:02.5]} 43... Nc4 {[%clk 0:00:18.6]} 44. a4
{[%clk 0:00:02.8]} 44... Nb6 {[%clk 0:00:19.3]} 45. Kd3 {[%clk 0:00:03.2]} 45...
Nxa4 {[%clk 0:00:20.2]} 46. Kc4 {[%clk 0:00:03.9]} 46... Nb6+ {[%clk 0:00:21.1]}
47. Kb5 {[%clk 0:00:04.4]} 47... a4 {[%clk 0:00:22]} 48. Kb4 {[%clk 0:00:04.8]}
48... Kf7 {[%clk 0:00:21.4]} 49. g4 {[%clk 0:00:04.5]} 49... h5 {[%clk
0:00:20.1]} 50. gxh5 {[%clk 0:00:03.3]} 50... f5 {[%clk 0:00:20.7]} 51. e5
{[%clk 0:00:01.7]} 51... f4 {[%clk 0:00:21.2]} 52. Kb5 {[%clk 0:00:01.8]} 52...
Ke6 {[%clk 0:00:21.4]} 53. Kxb6 {[%clk 0:00:01.6]} 53... a3 {[%clk 0:00:22]} 0-1

[Event "Early-Titled-Tuesday-Blitz-May-14-2024"]
[Site "Chess.com"]
[Date "2024.05.14"]
[Round "6"]
[White "Nasrin_Babayeva"]
[Black "ilimchess2"]
[Result "0-1"]
[WhiteElo "1930"]
[BlackElo "2296"]
[TimeControl "180+1"]
[EndTime "9:09:28 PDT"]
[Termination "ilimchess2 won by resignation"]

1. c4 {[%clk 0:03:00.9]} 1... c6 {[%clk 0:01:13.4]} 2. g3 {[%clk 0:02:59.2]}
2... d5 {[%clk 0:01:13.3]} 3. Bg2 {[%clk 0:03:00.1]} 3... Nf6 {[%clk 0:01:12.1]}
4. Nf3 {[%clk 0:02:58.7]} 4... Bg4 {[%clk 0:01:11.3]} 5. cxd5 {[%clk 0:02:57.2]}
5... cxd5 {[%clk 0:01:11.4]} 6. Qb3 {[%clk 0:02:55.7]} 6... Nbd7 {[%clk
0:01:05.2]} 7. Qxb7 {[%clk 0:02:49.8]} 7... e6 {[%clk 0:01:04.9]} 8. d4 {[%clk
0:02:41.5]} 8... Bd6 {[%clk 0:00:51.1]} 9. O-O {[%clk 0:02:35.7]} 9... O-O
{[%clk 0:00:50.6]} 10. Qc6 {[%clk 0:02:28.8]} 10... Nb6 {[%clk 0:00:48.7]} 11.
Nc3 {[%clk 0:02:17.1]} 11... Rc8 {[%clk 0:00:47.9]} 12. Qb5 {[%clk 0:02:14.2]}
12... Nc4 {[%clk 0:00:46.7]} 13. b4 {[%clk 0:01:46.4]} 13... Rb8 {[%clk
0:00:45]} 14. Qa6 {[%clk 0:01:44.6]} 14... Bxb4 {[%clk 0:00:45.3]} 15. Na4
{[%clk 0:01:40]} 15... Qe7 {[%clk 0:00:42.7]} 16. Bg5 {[%clk 0:01:36.4]} 16...
h6 {[%clk 0:00:40.3]} 17. Bxf6 {[%clk 0:01:34.7]} 17... Qxf6 {[%clk 0:00:41.2]}
18. Rfd1 {[%clk 0:01:22.5]} 18... Qe7 {[%clk 0:00:40.4]} 19. Rab1 {[%clk
0:01:10.5]} 19... Na3 {[%clk 0:00:40.1]} 20. Rb3 {[%clk 0:01:08.2]} 20... Bd6
{[%clk 0:00:37.8]} 21. Rdd3 {[%clk 0:00:54.3]} 21... Nc4 {[%clk 0:00:36.8]} 22.
h3 {[%clk 0:00:35]} 22... Bf5 {[%clk 0:00:35.5]} 23. Rdc3 {[%clk 0:00:35.3]}
23... Bb1 {[%clk 0:00:35.2]} 24. Nc5 {[%clk 0:00:28]} 24... Bxc5 {[%clk
0:00:33.4]} 25. dxc5 {[%clk 0:00:28.9]} 25... Qxc5 {[%clk 0:00:31.4]} 26. Nd2
{[%clk 0:00:25.7]} 26... Qd4 {[%clk 0:00:24.8]} 27. Nxb1 {[%clk 0:00:16.3]}
27... Qd1+ {[%clk 0:00:21.2]} 28. Kh2 {[%clk 0:00:16.5]} 28... Rxb3 {[%clk
0:00:18.4]} 29. Rxb3 {[%clk 0:00:16.5]} 29... Ne5 {[%clk 0:00:16.1]} 30. Nc3
{[%clk 0:00:13.3]} 30... Qc2 {[%clk 0:00:16]} 31. Qxa7 {[%clk 0:00:12.4]} 31...
Nc4 {[%clk 0:00:14.2]} 32. Qd4 {[%clk 0:00:08.4]} 32... Ra8 {[%clk 0:00:12.3]}
33. Rb7 {[%clk 0:00:01.8]} 33... Nd6 {[%clk 0:00:08.2]} 34. Nxd5 {[%clk
0:00:01.4]} 34... Nxb7 {[%clk 0:00:07.3]} 35. Ne7+ {[%clk 0:00:01.1]} 35... Kf8
{[%clk 0:00:07.4]} 36. Qd7 {[%clk 0:00:01.5]} 36... Re8 {[%clk 0:00:07.1]} 37.
Qxb7 {[%clk 0:00:00.5]} 37... Rxe7 {[%clk 0:00:06.8]} 38. Qb8+ {[%clk
0:00:01.3]} 38... Re8 {[%clk 0:00:07.1]} 39. Qd6+ {[%clk 0:00:02]} 39... Kg8
{[%clk 0:00:07.5]} 40. Bc6 {[%clk 0:00:02.7]} 40... Rf8 {[%clk 0:00:06.9]} 41.
Bf3 {[%clk 0:00:02.4]} 41... Qxa2 {[%clk 0:00:07.1]} 42. Qd3 {[%clk 0:00:01.4]}
42... Qa7 {[%clk 0:00:07.6]} 43. Kg2 {[%clk 0:00:00.7]} 43... Qc5 {[%clk
0:00:08]} 44. Be4 {[%clk 0:00:01.1]} 44... Qe7 {[%clk 0:00:08.1]} 45. Qf3 {[%clk
0:00:01.8]} 45... Kh8 {[%clk 0:00:08.3]} 46. Bd3 {[%clk 0:00:02]} 46... f5
{[%clk 0:00:08.5]} 47. Qh5 {[%clk 0:00:01.9]} 47... Qf6 {[%clk 0:00:08.1]} 48.
Qf3 {[%clk 0:00:02.2]} 48... e5 {[%clk 0:00:08.4]} 49. Qc6 {[%clk 0:00:01.5]}
0-1

[Event "Early-Titled-Tuesday-Blitz-May-14-2024"]
[Site "Chess.com"]
[Date "2024.05.14"]
[Round "6"]
[White "Alexander_Donchenko"]
[Black "Artemiki"]
[Result "1/2-1/2"]
[WhiteElo "2855"]
[BlackElo "2611"]
[TimeControl "180+1"]
[EndTime "9:09:29 PDT"]
[Termination "Game drawn - insufficient material"]

1. e4 {[%clk 0:03:00.9]} 1... e5 {[%clk 0:02:57.4]} 2. Nf3 {[%clk 0:03:01.2]}
2... Nc6 {[%clk 0:02:57.8]} 3. Bb5 {[%clk 0:03:01.8]} 3... a6 {[%clk 0:02:57.8]}
4. Ba4 {[%clk 0:03:02.3]} 4... Bc5 {[%clk 0:02:58]} 5. c3 {[%clk 0:03:01.9]}
5... Nge7 {[%clk 0:02:57.2]} 6. O-O {[%clk 0:03:01.5]} 6... Ba7 {[%clk
0:02:56.9]} 7. d4 {[%clk 0:03:00.1]} 7... Ng6 {[%clk 0:02:56.8]} 8. Bg5 {[%clk
0:02:56.7]} 8... f6 {[%clk 0:02:56.4]} 9. Be3 {[%clk 0:02:57.4]} 9... O-O {[%clk
0:02:51.8]} 10. Nbd2 {[%clk 0:02:57.6]} 10... d6 {[%clk 0:02:50.8]} 11. h3
{[%clk 0:02:57]} 11... Kh8 {[%clk 0:02:45.1]} 12. Bb3 {[%clk 0:02:56.7]} 12...
Na5 {[%clk 0:02:38.6]} 13. Bc2 {[%clk 0:02:56.2]} 13... Nc6 {[%clk 0:02:38.9]}
14. b4 {[%clk 0:02:55.7]} 14... f5 {[%clk 0:01:59.5]} 15. exf5 {[%clk
0:02:52.6]} 15... Bxf5 {[%clk 0:01:57.7]} 16. Bxf5 {[%clk 0:02:53.2]} 16... Rxf5
{[%clk 0:01:56.5]} 17. Qc2 {[%clk 0:02:53.8]} 17... Qf8 {[%clk 0:01:48.2]} 18.
d5 {[%clk 0:02:53.3]} 18... Nce7 {[%clk 0:01:46.7]} 19. Bxa7 {[%clk 0:02:53.1]}
19... Rxa7 {[%clk 0:01:47.6]} 20. c4 {[%clk 0:02:53.2]} 20... Nf4 {[%clk
0:01:44.3]} 21. Kh2 {[%clk 0:02:53.3]} 21... Ra8 {[%clk 0:01:35.4]} 22. g3
{[%clk 0:02:53.6]} 22... Nfg6 {[%clk 0:01:25.2]} 23. Kg2 {[%clk 0:02:53.7]}
23... Qf7 {[%clk 0:01:21.6]} 24. h4 {[%clk 0:02:52.4]} 24... Rf8 {[%clk
0:01:21.2]} 25. Qe4 {[%clk 0:02:51.5]} 25... Nf4+ {[%clk 0:01:11.2]} 26. gxf4
{[%clk 0:02:46]} 26... Rxf4 {[%clk 0:01:10.8]} 27. Ng5 {[%clk 0:02:46.6]} 27...
Qh5 {[%clk 0:00:56.1]} 28. Qd3 {[%clk 0:02:35.9]} 28... Qxh4 {[%clk 0:00:40.5]}
29. Nh3 {[%clk 0:02:30.5]} 29... Rd4 {[%clk 0:00:35.4]} 30. Qc3 {[%clk
0:02:27.5]} 30... Ng6 {[%clk 0:00:26]} 31. Rh1 {[%clk 0:02:22.8]} 31... Nf4+
{[%clk 0:00:13.6]} 32. Nxf4 {[%clk 0:02:22.1]} 32... Qxf4 {[%clk 0:00:14.5]} 33.
Raf1 {[%clk 0:01:31.8]} 33... Rxd2 {[%clk 0:00:12.3]} 34. Qg3 {[%clk 0:01:32.1]}
34... Qxg3+ {[%clk 0:00:10.6]} 35. Kxg3 {[%clk 0:01:33]} 35... Rd3+ {[%clk
0:00:10.4]} 36. Kg2 {[%clk 0:01:32.4]} 36... Rd4 {[%clk 0:00:10.4]} 37. Rc1
{[%clk 0:01:31.2]} 37... Rg4+ {[%clk 0:00:10.5]} 38. Kf1 {[%clk 0:01:31.3]}
38... Rgf4 {[%clk 0:00:10.8]} 39. Rc2 {[%clk 0:01:31.4]} 39... Rd4 {[%clk
0:00:10.1]} 40. Ke2 {[%clk 0:01:30.4]} 40... h6 {[%clk 0:00:09.5]} 41. b5 {[%clk
0:01:29]} 41... axb5 {[%clk 0:00:07.7]} 42. cxb5 {[%clk 0:01:29.9]} 42... Rxd5
{[%clk 0:00:08.2]} 43. a4 {[%clk 0:01:29.7]} 43... c6 {[%clk 0:00:07.6]} 44.
bxc6 {[%clk 0:01:29.6]} 44... bxc6 {[%clk 0:00:08.5]} 45. Rxc6 {[%clk
0:01:30.1]} 45... Rd4 {[%clk 0:00:07.6]} 46. Ra1 {[%clk 0:01:29.2]} 46... Re4+
{[%clk 0:00:07]} 47. Kf1 {[%clk 0:01:28.7]} 47... Ref4 {[%clk 0:00:04.7]} 48.
Ra2 {[%clk 0:01:29.2]} 48... e4 {[%clk 0:00:03.1]} 49. Rc3 {[%clk 0:01:24.2]}
49... d5 {[%clk 0:00:02.2]} 50. Ke1 {[%clk 0:01:17.8]} 50... d4 {[%clk
0:00:02.8]} 51. Rca3 {[%clk 0:01:18.5]} 51... e3 {[%clk 0:00:02.2]} 52. fxe3
{[%clk 0:01:19.4]} 52... Rf1+ {[%clk 0:00:02.5]} 53. Ke2 {[%clk 0:01:19.9]}
53... R1f2+ {[%clk 0:00:02.9]} 54. Kd3 {[%clk 0:01:20.5]} 54... Rxa2 {[%clk
0:00:03.3]} 55. Rxa2 {[%clk 0:01:21.4]} 55... dxe3 {[%clk 0:00:03.8]} 56. Kxe3
{[%clk 0:01:22.3]} 56... Kh7 {[%clk 0:00:04.2]} 57. a5 {[%clk 0:01:22.9]} 57...
h5 {[%clk 0:00:04]} 58. a6 {[%clk 0:01:23]} 58... Kh6 {[%clk 0:00:03.9]} 59. a7
{[%clk 0:01:23.3]} 59... Ra8 {[%clk 0:00:04.5]} 60. Kf4 {[%clk 0:01:23.9]} 60...
g6 {[%clk 0:00:03.9]} 61. Ra6 {[%clk 0:01:23.8]} 61... Kg7 {[%clk 0:00:02.3]}
62. Kg5 {[%clk 0:01:24.4]} 62... Kh7 {[%clk 0:00:02.2]} 63. Ra4 {[%clk
0:01:24.2]} 63... Kg7 {[%clk 0:00:02.6]} 64. Ra5 {[%clk 0:01:24.9]} 64... Kf7
{[%clk 0:00:02.8]} 65. Ra6 {[%clk 0:01:25.3]} 65... Ke7 {[%clk 0:00:03.3]} 66.
Rxg6 {[%clk 0:01:25]} 66... Kd7 {[%clk 0:00:02.1]} 67. Kxh5 {[%clk 0:01:21.6]}
67... Kc7 {[%clk 0:00:02.3]} 68. Kg5 {[%clk 0:01:22.3]} 68... Rxa7 {[%clk
0:00:02.3]} 69. Kf5 {[%clk 0:01:22.8]} 69... Kb7 {[%clk 0:00:02.7]} 70. Ke5
{[%clk 0:01:23]} 70... Ra5+ {[%clk 0:00:03.2]} 71. Kd4 {[%clk 0:01:22.8]} 71...
Rf5 {[%clk 0:00:03.8]} 72. Kc4 {[%clk 0:01:22.9]} 72... Rh5 {[%clk 0:00:04.3]}
73. Re6 {[%clk 0:01:23]} 73... Kc7 {[%clk 0:00:04.8]} 74. Ra6 {[%clk 0:01:23.3]}
74... Kb7 {[%clk 0:00:05]} 75. Rf6 {[%clk 0:01:23.8]} 75... Kc7 {[%clk
0:00:05.4]} 76. Kb4 {[%clk 0:01:24.4]} 76... Kd7 {[%clk 0:00:05.7]} 77. Rg6
{[%clk 0:01:25]} 77... Ke7 {[%clk 0:00:06.1]} 78. Rc6 {[%clk 0:01:25.6]} 78...
Kf7 {[%clk 0:00:06.4]} 79. Kc4 {[%clk 0:01:26.2]} 79... Ke7 {[%clk 0:00:06.9]}
80. Kd4 {[%clk 0:01:26.9]} 80... Kd7 {[%clk 0:00:07.4]} 81. Ra6 {[%clk
0:01:27.4]} 81... Kc7 {[%clk 0:00:07.6]} 82. Ke4 {[%clk 0:01:28]} 82... Kb7
{[%clk 0:00:08.1]} 83. Rf6 {[%clk 0:01:28.6]} 83... Kc7 {[%clk 0:00:08.4]} 84.
Kf4 {[%clk 0:01:29.2]} 84... Ra5 {[%clk 0:00:08.2]} 85. Kg4 {[%clk 0:01:29]}
85... Kd7 {[%clk 0:00:08.6]} 86. Kf4 {[%clk 0:01:29.4]} 86... Ke7 {[%clk
0:00:09.2]} 87. Rh6 {[%clk 0:01:30.2]} 87... Kf7 {[%clk 0:00:09.2]} 88. Ke4
{[%clk 0:01:30.9]} 88... Kg7 {[%clk 0:00:09.8]} 89. Rc6 {[%clk 0:01:31.6]} 89...
Rh5 {[%clk 0:00:09.5]} 90. Kd4 {[%clk 0:01:32.1]} 90... Kf7 {[%clk 0:00:09.3]}
91. Kc4 {[%clk 0:01:32.7]} 91... Ke7 {[%clk 0:00:09.9]} 92. Rb6 {[%clk 0:01:33]}
92... Kd7 {[%clk 0:00:10.3]} 93. Kb4 {[%clk 0:01:33.7]} 93... Kc7 {[%clk
0:00:10.8]} 94. Ra6 {[%clk 0:01:34.1]} 94... Kb7 {[%clk 0:00:11]} 95. Rf6 {[%clk
0:01:34.8]} 95... Kc7 {[%clk 0:00:11.3]} 96. Rg6 {[%clk 0:01:35.5]} 96... Kd7
{[%clk 0:00:12]} 97. Rf6 {[%clk 0:01:35.6]} 97... Ke7 {[%clk 0:00:12.6]} 98. Rb6
{[%clk 0:01:36.2]} 98... Kd7 {[%clk 0:00:13]} 99. Rb5 {[%clk 0:01:36.6]} 99...
Rxb5+ {[%clk 0:00:12.6]} 100. Kxb5 {[%clk 0:01:37.5]} 1/2-1/2

[Event "Early-Titled-Tuesday-Blitz-May-14-2024"]
[Site "Chess.com"]
[Date "2024.05.14"]
[Round "6"]
[White "Msb2"]
[Black "Hikaru"]
[Result "0-1"]
[WhiteElo "3064"]
[BlackElo "3216"]
[TimeControl "180+1"]
[EndTime "9:09:30 PDT"]
[Termination "Hikaru won by resignation"]

1. d4 {[%clk 0:03:00.9]} 1... Nf6 {[%clk 0:02:58]} 2. c4 {[%clk 0:03:01.1]} 2...
b6 {[%clk 0:02:56.8]} 3. Nc3 {[%clk 0:03:01.2]} 3... Bb7 {[%clk 0:02:56.8]} 4.
Qc2 {[%clk 0:03:01.9]} 4... Nc6 {[%clk 0:02:46.6]} 5. Nf3 {[%clk 0:03:00.4]}
5... e6 {[%clk 0:02:42.5]} 6. e4 {[%clk 0:02:57.3]} 6... Bb4 {[%clk 0:02:42.7]}
7. a3 {[%clk 0:02:42.1]} 7... Bxc3+ {[%clk 0:02:41]} 8. bxc3 {[%clk 0:02:43]}
8... d6 {[%clk 0:02:41.3]} 9. Bd3 {[%clk 0:02:39.2]} 9... e5 {[%clk 0:02:40.7]}
10. O-O {[%clk 0:02:39.2]} 10... h6 {[%clk 0:02:40.9]} 11. Rb1 {[%clk
0:02:38.6]} 11... O-O {[%clk 0:02:33.8]} 12. c5 {[%clk 0:02:32.5]} 12... dxc5
{[%clk 0:02:28.1]} 13. d5 {[%clk 0:02:29.8]} 13... c4 {[%clk 0:02:18]} 14. Be2
{[%clk 0:02:12.4]} 14... Na5 {[%clk 0:02:08.3]} 15. Nxe5 {[%clk 0:02:12.7]}
15... Re8 {[%clk 0:01:59.9]} 16. f4 {[%clk 0:01:57.2]} 16... c6 {[%clk
0:01:39.5]} 17. Rd1 {[%clk 0:01:14.4]} 17... cxd5 {[%clk 0:01:30.3]} 18. exd5
{[%clk 0:01:15.3]} 18... Qd6 {[%clk 0:01:28]} 19. Bf3 {[%clk 0:01:09.1]} 19...
Rad8 {[%clk 0:01:22.1]} 20. Nc6 {[%clk 0:00:39.6]} 20... Nxc6 {[%clk 0:01:08.4]}
21. dxc6 {[%clk 0:00:40.5]} 21... Qc5+ {[%clk 0:01:08.7]} 22. Kh1 {[%clk
0:00:40.9]} 22... Rxd1+ {[%clk 0:01:02.6]} 23. Qxd1 {[%clk 0:00:40.8]} 23...
Bxc6 {[%clk 0:01:03.3]} 24. Bd2 {[%clk 0:00:27.5]} 24... Bxf3 {[%clk 0:00:58.5]}
25. Qxf3 {[%clk 0:00:28.4]} 25... Qxa3 {[%clk 0:00:58.9]} 26. h3 {[%clk
0:00:18.2]} 26... Qa2 {[%clk 0:00:58]} 27. Rd1 {[%clk 0:00:18]} 27... Qc2 {[%clk
0:00:55.5]} 28. Be1 {[%clk 0:00:17.8]} 28... Qe2 {[%clk 0:00:53.2]} 29. Qxe2
{[%clk 0:00:13.2]} 29... Rxe2 {[%clk 0:00:54.1]} 30. Kg1 {[%clk 0:00:14.1]}
30... a5 {[%clk 0:00:44.3]} 31. Kf1 {[%clk 0:00:14.2]} 31... Rb2 {[%clk
0:00:44.3]} 32. Bf2 {[%clk 0:00:12.6]} 32... a4 {[%clk 0:00:41.4]} 33. Rd8+
{[%clk 0:00:12.4]} 33... Kh7 {[%clk 0:00:41.9]} 34. Ra8 {[%clk 0:00:13.3]} 34...
Ne4 {[%clk 0:00:40.2]} 35. Bd4 {[%clk 0:00:13.3]} 35... b5 {[%clk 0:00:40.8]}
36. Ra7 {[%clk 0:00:13]} 36... f6 {[%clk 0:00:40.8]} 37. g4 {[%clk 0:00:12.9]}
37... Nd2+ {[%clk 0:00:40.2]} 38. Ke2 {[%clk 0:00:07]} 38... Nb3+ {[%clk
0:00:40.4]} 39. Ke3 {[%clk 0:00:07.7]} 39... Nxd4 {[%clk 0:00:39.9]} 40. Kxd4
{[%clk 0:00:08.2]} 40... h5 {[%clk 0:00:35.7]} 41. g5 {[%clk 0:00:07]} 41...
fxg5 {[%clk 0:00:35.8]} 42. fxg5 {[%clk 0:00:07.9]} 42... Kg6 {[%clk 0:00:24.6]}
43. h4 {[%clk 0:00:07.7]} 43... Rb3 {[%clk 0:00:25.1]} 44. Ra6+ {[%clk
0:00:07.4]} 44... Kf5 {[%clk 0:00:25.2]} 45. Ra7 {[%clk 0:00:08]} 45... Kg4
{[%clk 0:00:21.8]} 46. Rxg7 {[%clk 0:00:08.1]} 46... Kxh4 {[%clk 0:00:22.7]} 47.
g6 {[%clk 0:00:03.8]} 47... Kg5 {[%clk 0:00:23.6]} 48. Ke5 {[%clk 0:00:03.9]}
48... Rxc3 {[%clk 0:00:21.8]} 49. Rg8 {[%clk 0:00:04.6]} 49... Re3+ {[%clk
0:00:21.5]} 50. Kd4 {[%clk 0:00:04.9]} 50... Re1 {[%clk 0:00:20.8]} 51. g7
{[%clk 0:00:05.8]} 51... Kg6 {[%clk 0:00:21.2]} 52. Re8 {[%clk 0:00:04]} 52...
Rd1+ {[%clk 0:00:18.6]} 53. Ke3 {[%clk 0:00:02.9]} 53... Kxg7 {[%clk 0:00:19.5]}
54. Ke2 {[%clk 0:00:03.3]} 54... Rd3 {[%clk 0:00:17.9]} 55. Re5 {[%clk
0:00:03.8]} 55... Rb3 {[%clk 0:00:18.1]} 56. Rxh5 {[%clk 0:00:04]} 56... a3
{[%clk 0:00:18.6]} 57. Rg5+ {[%clk 0:00:03.4]} 57... Kf6 {[%clk 0:00:18.6]} 58.
Rc5 {[%clk 0:00:04.1]} 58... Ke6 {[%clk 0:00:17.4]} 59. Rc6+ {[%clk 0:00:05]}
59... Kd5 {[%clk 0:00:17.8]} 60. Ra6 {[%clk 0:00:05.9]} 60... Kc5 {[%clk
0:00:17.9]} 61. Kd2 {[%clk 0:00:06.8]} 61... Kb4 {[%clk 0:00:18.5]} 62. Kc2
{[%clk 0:00:07.7]} 62... Rb2+ {[%clk 0:00:18.9]} 63. Kc1 {[%clk 0:00:07.9]}
63... c3 {[%clk 0:00:19.4]} 64. Rh6 {[%clk 0:00:08.8]} 64... Kb3 {[%clk
0:00:19.6]} 65. Rh3 {[%clk 0:00:09.7]} 65... b4 {[%clk 0:00:20]} 0-1